bitfinex-derivatives/quotes_ETHF0:USTF0_20250905
["timestamp","ask_amount","ask_price","bid_price","bid_amount"]
[1757102350945,0.235,4330.7,4330.6,0.7328]
[1757102351248,0.4446,4330.7,4330.6,0.7328]
[1757102351551,0.8676,4330.7,4330.6,0.5247]
[1757102351755,0.8676,4330.7,4330.6,0.3154]
[1757102352049,0.2131,4330.6,4330.1,0.3154]
[1757102352357,0.4195,4329.9,4329.5,1.23465445]
[1757102352553,3.9465,4330.5,4329.0,0.4174]
[1757102352554,0.301,4329.7,4329.0,0.4174]
[1757102352748,0.7205,4329.1,4329.0,0.4174]
[1757102352945,0.9555,4329.1,4328.0,0.1273]
[1757102353246,0.536,4329.1,4328.5,0.5447]
[1757102353650,0.536,4329.1,4329.0,0.1273]
[1757102353957,0.235,4329.1,4329.0,0.5447]
[1757102354145,0.301,4330.4,4329.0,4.5447]
[1757102354453,0.8485,4330.3,4330.2,0.2093]
[1757102354654,0.8485,4330.3,4330.2,0.5247]
[1757102355244,0.8485,4330.3,4330.2,0.2093]
[1757102355443,0.8485,4330.3,4329.5,0.1273]
[1757102355444,0.5106,4329.7,4329.6,0.7328]
[1757102355650,0.2096,4329.7,4329.6,0.7328]
[1757102355845,0.235,4329.8,4329.6,0.7328]
[1757102355846,0.235,4329.8,4329.7,0.3154]
[1757102356051,0.235,4329.8,4329.7,0.7328]
[1757102356245,0.9555,4329.8,4329.7,0.7328]
[1757102357447,0.9555,4329.8,4329.7,0.2093]
[1757102358453,0.9555,4329.8,4329.7,0.7001]
[1757102358960,0.235,4329.8,4329.7,0.7001]
[1757102360660,0.9534,4329.8,4329.7,0.7001]
[1757102364350,0.3093,4330.2,4329.7,0.4057]
[1757102364667,0.125,4330.6,4330.5,0.8212]
[1757102364857,0.1955,4330.6,4330.5,0.5268]
[1757102365164,0.1955,4330.6,4330.5,0.8212]
[1757102365360,0.3093,4330.8,4330.5,0.8212]
[1757102365555,0.1955,4330.6,4330.5,0.8212]
[1757102366159,0.5048,4330.6,4330.5,0.8212]
[1757102366362,0.1955,4330.1,4330.0,0.8212]
[1757102366754,0.3093,4330.4,4330.0,0.8212]
[1757102366755,0.3093,4330.4,4330.1,0.2944]
[1757102366964,0.5048,4330.4,4330.3,0.6971]
[1757102367260,0.3093,4330.9,4330.3,0.4027]
[1757102367462,0.4305,4331.0,4330.9,0.6971]
[1757102367667,0.9534,4331.0,4330.9,0.6971]
[1757102368558,1.0813,4331.0,4330.5,0.2944]
[1757102368765,4.9213,4331.0,4330.1,0.2944]
[1757102371258,4.6863,4331.0,4330.1,0.2944]
[1757102371564,0.7184,4330.8,4330.7,0.2063]
[1757102372164,0.8463,4330.5,4330.4,0.5007]
[1757102372657,0.8463,4330.5,4330.4,0.6971]
[1757102372858,0.3093,4330.8,4330.5,0.1241]
[1757102373059,0.7184,4330.8,4330.7,0.6971]
[1757102374261,0.3093,4331.5,4330.7,0.4027]
[1757102374463,0.7184,4331.5,4331.4,0.2063]
[1757102374657,0.8463,4331.5,4331.4,0.2063]
[1757102374853,0.8463,4331.5,4330.9,0.2944]
[1757102375066,0.537,4331.5,4331.0,0.1241]
[1757102375260,0.537,4331.5,4331.4,0.2063]
[1757102375658,0.537,4331.5,4330.5,0.1241]
[1757102375659,0.3093,4331.4,4330.5,0.1241]
[1757102375866,0.3093,4331.4,4330.6,0.2944]
[1757102376160,0.7184,4331.4,4331.3,0.2063]
[1757102376367,0.7184,4331.4,4330.6,0.2944]
[1757102377266,3.84,4331.3,4331.2,0.2063]
[1757102377563,4.5584,4331.3,4331.2,0.6971]
[1757102377865,4.5584,4331.3,4331.2,0.2063]
[1757102379358,4.5584,4331.3,4331.2,0.6971]
[1757102379766,4.5584,4331.3,4331.2,0.2063]
[1757102379975,0.04019495,4331.7,4331.3,0.2944]
[1757102380162,0.04019495,4331.7,4331.2,0.4027]
[1757102380163,0.3093,4332.2,4331.7,0.2944]
[1757102380361,0.7184,4332.2,4332.1,0.6971]
[1757102380867,0.7184,4332.2,4332.1,0.2063]
[1757102381170,0.7184,4332.2,4331.7,0.2944]
[1757102381566,0.095,4332.3,4331.7,0.5007]
[1757102381567,0.7184,4331.8,4331.7,0.5007]
[1757102381870,0.7184,4331.8,4331.7,0.2063]
[1757102382166,0.8463,4331.5,4331.4,0.5007]
[1757102382370,0.1955,4331.5,4331.4,0.6971]
[1757102382866,0.7184,4331.5,4331.4,0.6971]
[1757102383058,0.1955,4331.5,4331.4,0.6971]
[1757102383462,0.5048,4331.5,4331.4,0.6971]
[1757102384268,0.1279,4332.0,4331.6,0.2944]
[1757102384564,0.4091,4332.0,4331.9,0.6971]
[1757102384970,0.1955,4332.0,4331.9,0.6971]
[1757102385170,0.095,4332.3,4332.2,0.6971]
[1757102386869,0.3093,4333.3,4332.4,0.2944]
[1757102387078,0.3093,4333.3,4332.3,0.4027]
[1757102387079,0.5048,4333.3,4333.2,0.4027]
[1757102387267,0.1955,4333.3,4333.2,0.6971]
[1757102387778,0.7184,4333.3,4333.2,0.6971]
[1757102387973,0.5443,4333.7,4333.2,0.6971]
[1757102388178,0.5443,4333.7,4333.0,0.1241]
[1757102388179,0.235,4333.7,4333.5,0.1241]
[1757102388473,0.7025,4333.8,4333.7,0.7154]
[1757102389774,0.7025,4333.8,4333.1,0.3197]
[1757102389971,0.7025,4333.8,4333.7,0.2007]
[1757102390164,0.7025,4333.8,4333.5,0.3197]
[1757102390374,0.2042,4333.8,4333.7,0.7154]
[1757102390675,0.2905,4334.2,4333.7,0.7154]
[1757102390867,0.412,4333.9,4333.8,0.7154]
[1757102391068,0.7025,4333.9,4333.8,0.7154]
[1757102392071,0.7025,4333.9,4333.8,0.2007]
[1757102392373,0.7025,4333.9,4333.8,0.7154]
[1757102393379,0.2042,4333.9,4333.8,0.7154]
[1757102393669,0.2905,4334.2,4333.9,0.3197]
[1757102393868,0.7025,4334.2,4334.1,0.7154]
[1757102394072,0.7025,4334.2,4334.1,0.3957]
[1757102394575,0.7025,4334.2,4334.1,0.7154]
[1757102394977,0.7025,4334.2,4334.1,0.2007]
[1757102395172,0.7025,4334.2,4334.1,0.7154]
[1757102395369,0.2905,4334.6,4334.2,0.3197]
[1757102395574,0.7025,4334.6,4334.3,0.3197]
[1757102395769,0.45216674,4334.9,4334.8,0.3957]
[1757102396071,0.74266674,4334.9,4334.1,0.3197]
[1757102397271,0.2042,4334.2,4334.1,0.7154]
[1757102397679,0.7025,4334.2,4334.1,0.7154]
[1757102398584,0.2042,4334.2,4334.1,0.7154]
[1757102398878,0.2042,4334.3,4334.2,0.3197]
[1757102399078,0.4947,4334.3,4334.2,0.7154]
[1757102399276,0.7025,4334.3,4334.2,0.2007]
[1757102399872,0.1174,4334.0,4333.9,0.3197]
[1757102400076,0.1174,4334.0,4333.9,0.2007]
[1757102400077,0.8199,4334.0,4333.9,0.2007]
[1757102400276,0.8199,4334.0,4333.5,0.1201]
[1757102400478,0.7025,4333.9,4333.8,0.2007]
[1757102400674,0.7025,4333.9,4333.2,0.3197]
[1757102401078,0.7025,4333.4,4333.3,0.2007]
[1757102401276,0.7025,4333.4,4332.6,0.3197]
[1757102401580,0.098,4333.8,4333.7,0.3957]
[1757102401882,0.2905,4334.4,4333.8,0.3197]
[1757102402276,0.7025,4333.9,4333.2,0.3197]
[1757102402489,0.7025,4333.4,4333.3,0.2007]
[1757102402680,0.7025,4333.4,4333.3,0.5204]
[1757102402874,0.1174,4334.0,4333.3,0.3957]
[1757102403185,0.7025,4334.0,4333.9,0.7154]
[1757102403577,1.05064,4334.0,4332.6,0.3197]
[1757102403781,0.8199,4334.0,4332.6,0.3197]
[1757102404082,0.236,4334.2,4333.8,0.7154]
[1757102404083,0.2042,4333.9,4333.8,0.7154]
[1757102404281,0.2905,4334.2,4333.9,0.3197]
[1757102404483,0.7025,4334.2,4334.1,0.2007]
[1757102404681,0.412,4334.2,4334.1,0.2007]
[1757102404982,0.412,4334.2,4334.1,0.5204]
[1757102405184,0.2905,4334.1,4333.1,0.3197]
[1757102405380,0.7025,4333.2,4333.1,0.7154]
[1757102405580,0.1174,4334.0,4332.5,0.8395]
[1757102405581,0.4947,4332.6,4332.5,0.8395]
[1757102405775,0.1174,4333.0,4332.5,0.5198]
[1757102405980,0.8199,4333.0,4332.9,0.5204]
[1757102406177,0.2905,4333.7,4332.9,0.3957]
[1757102406375,0.7025,4333.7,4333.6,0.7154]
[1757102406884,0.7025,4333.7,4333.6,0.3957]
[1757102407085,0.7025,4333.7,4333.6,0.2007]
[1757102407488,0.7025,4333.7,4332.5,0.1241]
[1757102407489,0.7025,4333.7,4332.8,0.3197]
[1757102407790,0.93328,4333.7,4332.8,0.3197]
[1757102408688,0.7025,4333.7,4332.8,0.3197]
[1757102408888,0.7025,4333.7,4333.6,0.2007]
[1757102409278,0.2042,4333.7,4333.6,0.7154]
[1757102409479,0.7025,4333.7,4333.6,0.2007]
[1757102409685,0.7025,4333.7,4332.6,0.3197]
[1757102409886,4.5425,4333.7,4332.6,0.3197]
[1757102410083,0.7025,4332.1,4331.5,0.4398]
[1757102410392,0.7025,4331.6,4331.5,0.0591]
[1757102410580,0.1174,4331.5,4331.0,0.3957]
[1757102410780,0.1174,4332.0,4331.1,0.3197]
[1757102411085,1.2417915,4333.7,4332.4,0.3957]
[1757102411289,32.4721,4333.0,4332.9,0.2007]
[1757102411485,32.4721,4333.0,4332.9,0.7154]
[1757102411683,0.4947,4333.0,4332.9,0.7154]
[1757102411888,0.092,4333.6,4333.5,0.7154]
[1757102412185,0.7025,4333.6,4333.5,0.3957]
[1757102412580,0.7025,4333.6,4333.5,0.7154]
[1757102412985,0.7025,4333.6,4333.0,0.3197]
[1757102413184,0.4947,4333.1,4333.0,0.7154]
[1757102413586,0.7025,4333.1,4333.0,0.2007]
[1757102414193,0.2905,4333.9,4333.1,0.3197]
[1757102414492,0.2905,4333.9,4333.0,0.1201]
[1757102414493,0.7317,4333.9,4333.8,0.5204]
[1757102414688,0.9395,4333.9,4333.8,0.2007]
[1757102415093,0.9395,4333.9,4333.3,0.3197]
[1757102415495,0.9395,4333.9,4332.6,0.3197]
[1757102416490,4.7795,4333.9,4332.6,0.3197]
[1757102416683,3.9574,4333.5,4332.2,0.3197]
[1757102416892,0.2905,4332.9,4332.0,0.3197]
[1757102417183,0.2905,4332.7,4332.0,0.3197]
[1757102417388,0.2905,4332.7,4331.6,0.3197]
[1757102418387,4.2763,4332.5,4331.2,0.3147]
[1757102418592,0.1235,4332.5,4331.2,0.3147]
[1757102418890,0.1174,4333.0,4331.2,0.3147]
[1757102418891,0.5498,4332.8,4331.3,0.23085]
[1757102419093,0.3128,4332.6,4331.6,0.3147]
[1757102419289,0.1235,4332.5,4331.6,0.3147]
[1757102419992,0.3788,4332.6,4331.6,0.3147]
[1757102420388,0.3128,4332.6,4331.6,0.3147]
[1757102421194,0.3128,4332.4,4331.6,0.3147]
[1757102423296,0.1235,4332.5,4332.3,0.2023]
[1757102423502,0.4302,4333.0,4332.4,0.3147]
[1757102423690,0.3128,4333.2,4332.3,0.3147]
[1757102424001,0.5436,4333.2,4331.6,0.3147]
[1757102424305,0.4363,4333.0,4331.6,0.3147]
[1757102424491,3.84,4332.7,4331.1,0.3147]
[1757102424690,0.3128,4332.4,4331.1,0.3147]
[1757102424895,0.3128,4332.4,4331.1,0.54554]
[1757102425092,0.3128,4332.4,4331.2,0.3147]
[1757102426604,0.237,4332.3,4331.2,0.3147]
[1757102426806,0.074,4332.2,4331.2,0.3147]
[1757102427190,0.3128,4332.1,4331.2,0.3147]
[1757102427497,0.5192,4333.5,4333.4,0.7279]
[1757102427904,0.8368,4333.5,4332.9,0.3147]
[1757102428103,0.524,4333.5,4332.5,0.4349]
[1757102428305,0.3128,4333.4,4332.5,0.1202]
[1757102428503,0.7133,4333.4,4333.3,0.2023]
[1757102429395,0.7133,4333.4,4332.6,0.3147]
[1757102429600,0.7133,4333.4,4332.1,0.3147]
[1757102431806,0.7133,4333.4,4333.3,0.4132]
[1757102432002,0.7133,4333.4,4332.5,0.1202]
[1757102432003,0.3128,4334.1,4333.4,0.3147]
[1757102432199,0.3128,4334.1,4333.5,0.1202]
[1757102432697,0.3128,4334.1,4333.6,0.3147]
[1757102432899,0.3128,4334.1,4333.5,0.1202]
[1757102433098,0.3128,4334.1,4333.6,0.3147]
[1757102433502,0.3128,4334.4,4333.6,0.3147]
[1757102434800,0.7133,4334.4,4334.3,0.2023]
[1757102435405,0.7133,4334.4,4334.3,0.7279]
[1757102435608,0.1235,4336.5,4334.6,0.3147]
[1757102435802,0.1235,4337.0,4334.6,0.3147]
[1757102436008,0.1235,4337.0,4334.8,0.3147]
[1757102436009,0.4363,4337.0,4334.8,0.3147]
[1757102436202,0.3128,4335.4,4335.3,0.82479962]
[1757102436404,0.4363,4336.5,4334.6,0.3147]
[1757102436605,0.3128,4336.9,4334.6,0.3147]
[1757102436806,0.3128,4336.9,4334.7,0.23064]
[1757102437111,0.3128,4336.9,4334.8,0.3147]
[1757102437404,0.3128,4336.9,4335.1,0.82479962]
[1757102437706,0.3128,4336.9,4335.2,0.3147]
[1757102437899,0.3128,4336.9,4335.3,0.3147]
[1757102438104,0.3128,4336.9,4335.5,0.1202]
[1757102438304,0.3128,4336.9,4335.6,0.3147]
[1757102438503,0.3128,4337.4,4335.7,0.3147]
[1757102438710,0.3128,4337.4,4335.7,0.5453]
[1757102438909,0.3128,4337.4,4335.6,0.3147]
[1757102439207,0.3128,4337.4,4335.7,0.3147]
[1757102439408,0.3128,4337.4,4335.7,0.2306]
[1757102439614,0.1235,4337.5,4335.8,0.2306]
[1757102439814,0.3128,4337.4,4336.1,0.3147]
[1757102440205,0.3128,4337.9,4336.1,0.3147]
[1757102440404,0.3128,4337.9,4336.2,0.3147]
[1757102442110,31.9865,4338.5,4336.6,0.3147]
[1757102442111,0.3128,4338.4,4336.6,0.3147]
[1757102442312,0.3128,4338.4,4336.7,0.23054]
[1757102442511,0.3128,4338.4,4336.8,0.3147]
[1757102442908,0.3128,4338.4,4337.0,0.4349]
[1757102443108,0.3128,4338.4,4337.1,0.3147]
[1757102444109,0.3529351,4338.4,4337.1,0.3147]
[1757102444311,0.3128,4338.4,4336.6,0.3147]
[1757102445807,0.54335,4338.4,4336.6,0.3147]
[1757102446009,0.3128,4338.2,4336.6,0.3147]
[1757102447210,3.84,4337.9,4336.6,0.3147]
[1757102447407,0.4363,4338.0,4336.6,0.3147]
[1757102448513,0.4363,4338.0,4336.5,0.0999]
[1757102448514,0.3128,4338.0,4336.8,0.3206]
[1757102449123,0.00126785,4337.3,4337.0,0.1192]
[1757102449416,0.00126785,4337.3,4337.1,0.3206]
[1757102449819,0.00126785,4337.3,4336.5,0.0999]
[1757102449820,0.3182,4337.2,4336.6,0.3206]
[1757102450314,0.00126785,4337.3,4336.6,0.3206]
[1757102451013,0.31946785,4337.3,4336.6,0.3206]
[1757102451314,0.00126785,4337.3,4336.6,0.3206]
[1757102454016,0.3182,4337.2,4336.6,0.3206]
[1757102454818,0.3182,4337.2,4337.1,0.4155]
[1757102455022,0.3182,4337.2,4337.1,0.7361]
[1757102455412,0.7261,4337.2,4337.1,0.4155]
[1757102455613,0.7261,4337.2,4336.6,0.3206]
[1757102457116,0.00126785,4337.3,4337.2,0.7361]
[1757102458521,0.52436785,4337.3,4337.2,0.7361]
[1757102458911,0.72736785,4337.3,4337.2,0.4155]
[1757102459519,0.72736785,4337.3,4336.1,0.3206]
[1757102461512,0.72736785,4337.3,4335.6,0.3206]
[1757102461717,0.72736785,4337.3,4335.1,0.3206]
[1757102461916,0.1269,4337.0,4335.1,0.3206]
[1757102462118,0.3182,4336.9,4335.1,0.3206]
[1757102462418,0.54882,4336.9,4334.7,0.3206]
[1757102462610,0.3182,4336.7,4334.7,0.3206]
[1757102462810,0.4451,4336.5,4334.7,0.3206]
[1757102463014,0.4451,4336.5,4335.1,0.3206]
[1757102463313,0.4451,4336.5,4335.3,0.3206]
[1757102465015,0.17,4338.9,4337.0,0.1155]
[1757102465016,0.3182,4338.3,4337.0,0.1155]
[1757102465215,0.17,4338.9,4338.5,0.1143]
[1757102465616,0.17,4338.9,4338.6,0.3206]
[1757102465825,0.3182,4338.8,4338.0,0.3206]
[1757102466717,0.17,4338.9,4337.6,1.14006472]
[1757102467022,0.3182,4338.8,4337.6,0.3206]
[1757102467220,0.3182,4338.8,4337.2,0.3206]
[1757102469124,0.23052,4338.7,4337.2,0.3206]
[1757102469422,0.27065274,4338.7,4337.2,0.3206]
[1757102469624,0.4451,4338.5,4337.2,0.3206]
[1757102469825,0.4451,4338.5,4336.8,0.3206]
[1757102470324,0.54874001,4338.4,4336.4,0.3206]
[1757102470520,0.06,4338.3,4336.0,0.4349]
[1757102470716,0.3182,4338.1,4336.0,0.3206]
[1757102470917,0.3182,4337.9,4335.6,0.3206]
[1757102471425,0.3182,4337.7,4335.7,1.14006472]
[1757102471626,0.244,4337.6,4335.8,0.3206]
[1757102471926,0.3182,4337.4,4335.8,0.3206]
[1757102472219,0.244,4337.3,4335.8,0.3206]
[1757102472420,0.3182,4337.2,4336.0,0.1143]
[1757102472620,0.1269,4337.5,4336.1,0.3206]
[1757102473321,0.1269,4337.5,4336.1,1.14006472]
[1757102473523,0.3182,4337.4,4336.1,0.3206]
[1757102474721,3.2078,4336.7,4336.1,0.3206]
[1757102476430,3.526,4336.7,4336.1,0.3206]
[1757102476923,3.2078,4336.2,4335.9,0.81946472]
[1757102477118,3.2078,4336.2,4335.9,0.3206]
[1757102477119,3.526,4336.2,4335.9,0.3206]
[1757102477315,0.3182,4336.1,4335.9,0.3206]
[1757102477528,3.2078,4336.2,4335.9,0.3206]
[1757102477725,0.3182,4336.1,4335.9,0.3206]
[1757102477922,0.3182,4336.1,4335.2,3.2078]
[1757102477923,0.3182,4335.9,4335.4,0.3206]
[1757102478122,0.3182,4335.9,4335.3,0.3206]
[1757102478316,3.2078,4336.2,4335.3,0.81946472]
[1757102478526,3.2078,4336.2,4335.6,0.2968]
[1757102480226,3.2078,4336.2,4336.0,0.1143]
[1757102480524,3.2078,4336.2,4336.1,0.2968]
[1757102481026,3.5111,4336.7,4336.1,0.2968]
[1757102481421,0.3033,4336.6,4335.8,0.81946472]
[1757102481623,0.3033,4336.6,4335.9,0.2968]
[1757102481823,3.2078,4336.7,4336.0,0.1154]
[1757102482030,3.2078,4336.7,4336.1,0.2968]
[1757102482329,3.2078,4336.7,4336.2,0.2968]
[1757102482933,3.2078,4336.7,4336.1,0.81946472]
[1757102483227,0.3033,4336.6,4336.1,0.81946472]
[1757102483422,0.3033,4336.6,4336.2,0.2968]
[1757102483622,0.3033,4336.6,4336.1,0.81946472]
[1757102483817,3.2078,4336.7,4336.2,0.2968]
[1757102484020,0.3033,4336.6,4336.1,0.81946472]
[1757102484223,3.2078,4336.7,4336.1,0.81946472]
[1757102484928,3.5111,4336.7,4336.1,1.11626472]
[1757102486132,3.2078,4336.7,4336.2,0.2968]
[1757102486324,3.2078,4336.7,4336.3,0.81946472]
[1757102486525,3.2078,4336.7,4336.4,0.2968]
[1757102486832,3.2078,4336.7,4336.6,0.2968]
[1757102487725,0.3699,4337.5,4336.6,0.2968]
[1757102487726,0.1269,4337.5,4336.7,0.2968]
[1757102488029,3.2078,4337.7,4337.4,0.81946472]
[1757102488225,3.2078,4337.7,4337.5,0.2968]
[1757102488432,3.5111,4337.7,4337.6,0.32031022]
[1757102488631,3.5111,4337.7,4337.6,0.61711022]
[1757102489223,3.5111,4337.7,4337.6,0.32031022]
[1757102491628,0.3033,4337.7,4337.6,0.32031022]
[1757102492132,0.3033,4337.7,4337.6,0.61711022]
[1757102492430,0.7151,4337.7,4337.6,0.32031022]
[1757102493632,0.7151,4337.7,4337.6,0.51901022]
[1757102494131,3.5111,4337.7,4337.6,0.32031022]
[1757102494336,3.5111,4337.7,4336.8,1.22919708]
[1757102494337,0.1213,4337.5,4337.0,0.81946472]
[1757102494733,0.3033,4337.4,4337.0,0.81946472]
[1757102494926,0.3033,4337.4,4337.1,0.2968]
[1757102495131,0.3033,4337.4,4337.0,0.1216]
[1757102495431,3.2078,4337.7,4337.1,0.2968]
[1757102495627,0.3033,4337.6,4337.1,0.2968]
[1757102496028,3.2078,4337.7,4337.0,0.81946472]
[1757102496230,0.3033,4337.6,4337.0,1.11626472]
[1757102497332,0.7151,4337.6,4337.5,0.4955]
[1757102497931,0.2092,4337.0,4336.9,1.31496472]
[1757102498231,0.3033,4336.9,4336.5,0.81946472]
[1757102498431,0.243,4336.9,4336.5,0.81946472]
[1757102498631,0.3033,4336.8,4336.5,0.81946472]
[1757102498831,0.3033,4336.8,4336.1,0.81946472]
[1757102499038,3.2078,4336.4,4336.0,1.11626472]
[1757102499834,0.3033,4336.3,4336.0,1.11626472]
[1757102500038,3.2078,4336.4,4336.1,0.2968]
[1757102500535,3.2078,4336.4,4336.2,0.2968]
[1757102500834,0.1213,4339.0,4336.5,0.1216]
[1757102500835,3.5111,4337.5,4336.5,0.1216]
[1757102501028,3.3291,4337.5,4336.6,0.2968]
[1757102501235,3.2078,4337.5,4336.7,0.82168375]
[1757102501539,3.2078,4337.5,4337.0,0.1216]
[1757102501727,3.5111,4337.5,4337.0,0.1216]
[1757102501928,3.2078,4337.5,4337.0,0.1216]
[1757102502133,0.3033,4337.4,4336.9,0.82168375]
[1757102502334,3.5111,4337.5,4337.1,0.2968]
[1757102502531,3.2078,4337.5,4337.0,1.17384375]
[1757102502737,3.2078,4337.5,4337.1,0.2968]
[1757102503138,3.5111,4338.1,4337.1,0.2968]
[1757102503339,3.5111,4338.1,4337.5,0.1216]
[1757102503536,3.2078,4338.1,4337.6,0.243]
[1757102503838,3.2078,4338.1,4338.0,0.4184]
[1757102504139,3.2078,4338.1,4338.0,0.2968]
[1757102504942,3.5111,4338.1,4338.0,0.2968]
[1757102505241,0.3033,4338.0,4337.8,0.2968]
[1757102505536,0.3033,4338.0,4337.7,0.82168375]
[1757102505737,0.3033,4338.0,4337.8,0.2968]
[1757102505944,0.3033,4338.0,4337.7,0.2968]
[1757102506338,3.2078,4338.1,4337.8,0.31739897]
[1757102506543,0.3033,4338.0,4337.9,0.31739897]
[1757102506745,0.4246,4338.0,4337.9,0.31739897]
[1757102507944,3.2078,4338.1,4338.0,0.2968]
[1757102508143,3.2078,4338.1,4338.0,0.61419897]
[1757102508737,3.2078,4338.1,4338.0,0.73269897]
[1757102509441,3.2078,4338.1,4338.0,0.61419897]
[1757102509638,3.2078,4338.6,4338.1,0.2941]
[1757102509838,3.2078,4338.6,4338.5,0.4126]
[1757102510044,3.2078,4338.6,4338.5,0.72999897]
[1757102510845,0.2904,4338.8,4338.5,0.31739897]
[1757102511040,0.17,4338.9,4338.6,0.31739897]
[1757102511245,0.2904,4338.8,4338.7,0.31739897]
[1757102514853,4.9379,4338.8,4338.7,0.31739897]
[1757102515250,4.242,4338.8,4337.9,0.82168375]
[1757102515448,0.5975,4338.0,4337.7,0.82168375]
[1757102515651,0.4055,4337.8,4337.6,0.82168375]
[1757102515949,0.5975,4337.5,4337.3,0.2941]
[1757102516146,0.4055,4337.5,4337.4,0.4183]
[1757102516352,0.4055,4337.5,4337.1,0.82168375]
[1757102516353,3.4028,4337.6,4337.5,0.8309]
[1757102516550,3.6133,4337.6,4337.5,0.6209]
[1757102517456,3.6133,4337.6,4337.5,0.8309]
[1757102517656,3.6133,4337.6,4337.5,0.4126]
[1757102517853,3.6133,4337.6,4337.5,0.8309]
[1757102518158,3.4028,4337.6,4337.5,0.8309]
[1757102518454,3.2078,4337.6,4337.5,0.8309]
[1757102519156,0.242,4338.1,4337.5,0.8309]
[1757102519352,0.242,4338.1,4337.6,0.2941]
[1757102519556,0.242,4338.1,4337.5,0.1185]
[1757102519753,0.242,4338.1,4337.6,0.2941]
[1757102519957,0.242,4338.1,4337.5,0.1185]
[1757102520154,0.242,4338.1,4337.6,0.2941]
[1757102520856,0.242,4338.1,4337.5,0.1185]
[1757102521152,0.437,4338.1,4338.0,0.6209]
[1757102521656,0.4055,4338.1,4338.0,0.6209]
[1757102522449,0.5975,4338.1,4338.0,0.2941]
[1757102522649,0.5975,4338.1,4337.6,0.2941]
[1757102522843,0.195,4337.6,4337.5,0.3268]
[1757102523052,0.4055,4337.6,4337.5,0.6209]
[1757102523756,0.5975,4337.6,4337.5,0.2941]
[1757102523958,0.5975,4337.6,4337.1,0.82168375]
[1757102524157,0.5975,4337.3,4337.2,0.2941]
[1757102524357,0.5975,4337.0,4336.9,0.82168375]
[1757102524557,0.5975,4337.0,4336.8,1.11578375]
[1757102524864,0.5975,4337.0,4336.9,0.2941]
[1757102525069,0.4055,4337.0,4336.9,0.2941]
[1757102525364,0.4055,4337.0,4336.9,0.5024]
[1757102525954,0.4055,4337.0,4336.9,0.7124]
[1757102527367,0.4055,4337.0,4336.9,1.0275806]
[1757102527868,0.5975,4337.0,4336.9,0.6092806]
[1757102528171,0.4055,4337.0,4336.9,0.6092806]
[1757102528367,0.195,4337.1,4337.0,0.6209]
[1757102528561,0.4055,4337.1,4337.0,0.9360806]
[1757102529467,0.4055,4337.1,4337.0,0.93578957]
[1757102529860,0.4055,4337.1,4337.0,0.93579434]
[1757102530062,0.8385,4337.1,4337.0,0.60899434]
[1757102530360,0.8385,4337.1,4336.0,0.1185]
[1757102530361,8.71707,4337.1,4336.3,0.82168375]
[1757102530670,3.2078,4336.4,4336.2,0.2941]
[1757102530862,0.241,4336.3,4336.1,0.82168375]
[1757102531062,0.241,4336.3,4336.2,0.2941]
[1757102531871,0.241,4336.3,4335.8,0.00827]
[1757102531872,4.241,4336.3,4335.8,0.00827]
[1757102532167,3.2078,4335.9,4335.1,0.2941]
[1757102532468,3.2078,4335.2,4335.1,0.2941]
[1757102532965,3.2078,4335.8,4335.5,0.1185]
[1757102533162,3.2078,4335.8,4335.6,0.2941]
[1757102533559,3.2078,4335.8,4335.5,0.1185]
[1757102533960,3.2078,4335.8,4335.6,0.2941]
[1757102534173,3.2078,4335.8,4335.5,0.1185]
[1757102534470,3.2078,4335.8,4335.6,0.2941]
[1757102534671,3.2078,4335.8,4335.5,0.1185]
[1757102534871,3.2078,4335.8,4335.6,0.2941]
[1757102535070,0.241,4335.7,4335.6,0.2941]
[1757102535568,0.241,4335.7,4335.0,0.3385]
[1757102535770,3.2078,4335.2,4335.1,0.2941]
[1757102535964,3.2078,4335.2,4335.0,0.1185]
[1757102536171,0.241,4335.1,4335.0,0.1185]
[1757102536369,0.241,4335.1,4334.6,0.2941]
[1757102536670,0.241,4335.1,4335.0,0.1185]
[1757102536975,0.241,4335.1,4334.0,0.1185]
[1757102537167,3.2078,4334.1,4334.0,0.4126]
[1757102542270,3.2078,4334.7,4334.0,4.4126]
[1757102542476,3.2078,4335.2,4335.1,0.2913]
[1757102543074,0.241,4335.4,4335.1,0.2913]
[1757102543672,3.2078,4335.2,4335.1,0.2913]
[1757102543870,3.4488,4335.2,4334.6,0.2913]
[1757102544069,3.4488,4335.2,4334.1,0.2913]
[1757102544278,3.2078,4335.2,4334.1,0.2913]
[1757102544474,3.2078,4335.2,4333.9,3.2078]
[1757102544475,3.2078,4335.2,4335.1,0.2913]
[1757102544670,3.4488,4335.2,4335.1,0.2913]
[1757102545769,3.2078,4335.2,4335.1,0.2913]
[1757102547169,3.2078,4335.2,4335.1,0.6946]
[1757102547374,3.2078,4335.2,4335.1,0.4883]
[1757102548477,3.2078,4335.2,4335.1,0.81112597]
[1757102549584,3.2078,4335.2,4335.1,0.32282597]
[1757102550082,3.2078,4335.2,4335.1,0.61412597]
[1757102551083,3.2078,4335.2,4335.1,0.32282597]
[1757102557793,3.2078,4335.2,4335.1,0.61412597]
[1757102557993,3.2078,4335.2,4335.1,0.32282597]
[1757102558194,3.6992641,4335.2,4335.1,0.32282597]
[1757102558693,7.6992641,4335.2,4335.1,0.32282597]
[1757102559491,3.6992641,4335.2,4335.1,0.32282597]